fUSD/lending_fUSD_20250314
["ID","MTS","AMOUNT","RATE_DAILY","PERIOD"]
[356121525,1741914654330,-500.0,0.00021917,3]
[356121527,1741914654339,-500.0,0.00021917,3]
[356121529,1741914654349,-151.0,0.00021917,2]
[356121531,1741914654359,-1137.690476,0.00021917,2]
[356121533,1741914654368,-500.0,0.00021917,3]
[356121535,1741914654377,-151.0,0.00021917,2]
[356121537,1741914654387,-500.0,0.00021917,3]
[356121539,1741914654396,-500.0,0.00021917,3]
[356121541,1741914654407,-500.0,0.00021917,3]
[356121543,1741914654416,-500.0,0.00021917,3]
[356121545,1741914654425,-1137.690476,0.00021917,2]
[356121547,1741914654434,-500.0,0.00021917,3]
[356121549,1741914654443,-500.0,0.00021917,3]
[356121551,1741914654453,-151.0,0.00021917,2]
[356121553,1741914654462,-500.0,0.00021917,3]
[356121555,1741914654471,-193.676684,0.00021917,2]
[356121557,1741914654481,-500.0,0.00021917,3]
[356121559,1741914654490,-500.0,0.00021917,3]
[356121561,1741914654499,-500.0,0.00021917,3]
[356121563,1741914654508,-500.0,0.00021917,3]
[356121565,1741914654518,-193.676684,0.00021917,2]
[356121567,1741914654527,-500.0,0.00021917,3]
[356121569,1741914654536,-500.0,0.00021917,3]
[356121571,1741914654545,-174.17994141,0.00021917,3]
[356121573,1741914654554,-500.0,0.00021917,3]
[356121575,1741914654563,-500.0,0.00021917,3]
[356121577,1741914654572,-500.0,0.00021917,3]
[356121579,1741914654581,-500.0,0.00021917,3]
[356121581,1741914654591,-500.0,0.00021917,3]
[356121583,1741914654600,-500.0,0.00021917,3]
[356121585,1741914654610,-500.0,0.00021917,3]
[356121587,1741914654619,-500.0,0.00021917,3]
[356121589,1741914654628,-500.0,0.00021917,3]
[356121591,1741914654637,-151.0,0.00021917,2]
[356121593,1741914654647,-599.57,0.00021917,3]
[356121595,1741914654658,-500.0,0.00021917,3]
[356121597,1741914654668,-500.0,0.00021917,3]
[356121599,1741914654677,-500.0,0.00021917,3]
[356121601,1741914654687,-965.44,0.00021917,3]
[356121603,1741914654697,-500.0,0.00021917,3]
[356121605,1741914654706,-501.66127032,0.00021917,3]
[356121607,1741914654715,-500.0,0.00021917,3]
[356121609,1741914654724,-500.0,0.00021917,3]
[356121611,1741914654734,-500.0,0.00021917,3]
[356121613,1741914654743,-2493.78,0.00021917,3]
[356121615,1741914654752,-500.0,0.00021917,3]
[356121617,1741914654761,-1000.0,0.00021918,2]
[356121619,1741914654770,-1000.0,0.00021918,2]
[356121621,1741914654779,-1000.0,0.00021918,2]
[356121623,1741914654788,-1000.0,0.00021918,2]
[356121625,1741914654797,-1000.0,0.00021918,2]
[356121627,1741914654806,-1000.0,0.00021918,2]
[356121629,1741914654814,-1000.0,0.00021918,2]
[356121631,1741914654824,-1000.0,0.00021918,2]
[356121633,1741914654832,-1000.0,0.00021918,2]
[356121635,1741914654842,-1000.0,0.00021918,2]
[356121636,1741914654851,-1000.0,0.00021918,2]
[356121638,1741914654860,-1000.0,0.00021918,2]
[356121640,1741914654869,-1000.0,0.00021918,2]
[356121642,1741914654878,-1000.0,0.00021918,2]
[356121644,1741914654887,-1000.0,0.00021918,2]
[356121646,1741914654896,-1000.0,0.00021918,2]
[356121648,1741914654906,-1000.0,0.00021918,2]
[356121650,1741914654916,-1000.0,0.00021918,2]
[356121652,1741914654927,-1000.0,0.00021918,2]
[356121654,1741914654938,-1000.0,0.00021918,2]
[356121656,1741914654948,-1000.0,0.00021918,2]
[356121658,1741914654957,-1000.0,0.00021918,2]
[356121660,1741914654968,-1000.0,0.00021918,2]
[356121662,1741914654978,-1000.0,0.00021918,2]
[356121664,1741914654988,-1000.0,0.00021918,2]
[356121666,1741914654998,-1000.0,0.00021918,2]
[356121668,1741914655007,-1000.0,0.00021918,2]
[356121670,1741914655016,-1000.0,0.00021918,2]
[356121672,1741914655026,-1000.0,0.00021918,2]
[356121674,1741914655035,-1000.0,0.00021918,2]
[356121676,1741914655045,-1000.0,0.00021918,2]
[356121678,1741914655054,-1000.0,0.00021918,2]
[356121680,1741914655063,-1000.0,0.00021918,2]
[356121682,1741914655072,-1000.0,0.00021918,2]
[356121684,1741914655081,-935.0,0.00021918,2]
[356121686,1741914655091,-151.0,0.00021918,7]
[356121688,1741914655100,-151.0,0.00021918,7]
[356121690,1741914655110,-151.0,0.00021918,7]
[356121692,1741914655118,-206.66516,0.00021918,7]
[356121693,1741914655127,-206.66516,0.00021918,7]
[356121695,1741914655137,-151.0,0.00021918,7]
[356121698,1741914655146,-151.0,0.00021918,7]
[356121700,1741914655157,-151.0,0.00021918,7]
[356121701,1741914655166,-151.0,0.00021918,7]
[356121703,1741914655175,-151.0,0.00021918,7]
[356121705,1741914655184,-232.494687,0.00021918,7]
[356121707,1741914655194,-151.0,0.00021918,7]
[356121709,1741914655203,-232.494687,0.00021918,7]
[356121711,1741914655213,-151.0,0.00021918,7]
[356121713,1741914655222,-151.0,0.00021918,7]
[356121715,1741914655231,-151.0,0.00021918,7]
[356121717,1741914655241,-151.0,0.00021918,7]
[356121719,1741914655250,-625.371998,0.00021918,7]
[356121721,1741914655259,-625.371998,0.00021918,7]
[356121723,1741914655268,-151.0,0.00021918,7]
[356121725,1741914655279,-151.0,0.00021918,7]
[356121727,1741914655289,-151.0,0.00021918,7]
[356121729,1741914655298,-185.803166,0.00021918,7]
[356121731,1741914655307,-151.0,0.00021918,7]
[356121733,1741914655317,-185.803166,0.00021918,7]
[356121735,1741914655326,-151.0,0.00021918,7]
[356121737,1741914655336,-151.0,0.00021918,7]
[356121739,1741914655345,-151.0,0.00021918,7]
[356121741,1741914655354,-151.0,0.00021918,7]
[356121743,1741914655363,-500.0,0.00021944,3]
[356121745,1741914655372,-500.0,0.00021945,3]
[356121747,1741914655381,-500.0,0.00021945,3]
[356121749,1741914655391,-323.55134318,0.00021945,3]
[356121751,1741914655401,-474.18804702,0.00021945,3]
[356121753,1741914655410,-500.0,0.00021945,3]
[356121755,1741914655419,-213.60111,0.00021945,7]
[356121757,1741914655428,-538.73526174,0.00021945,3]
[356121758,1741914655437,-1138.2,0.00021945,3]
[356121760,1741914655446,-213.60111,0.00021945,7]
[356121762,1741914655455,-500.0,0.00021945,3]
[356121764,1741914655464,-500.0,0.00021945,2]
[356121766,1741914655473,-500.0,0.00021945,3]
[356121768,1741914655482,-500.0,0.00021945,3]
[356121770,1741914655491,-500.0,0.00021945,3]
[356121772,1741914655500,-500.0,0.00021945,3]
[356121774,1741914655509,-500.0,0.00021945,3]
[356121776,1741914655518,-500.0,0.00021945,3]
[356121778,1741914655527,-500.0,0.00021945,3]
[356121780,1741914655537,-151.0,0.00021945,7]
[356121782,1741914655546,-588.56,0.00021945,3]
[356121784,1741914655555,-151.0,0.00021945,7]
[356121786,1741914655564,-500.0,0.00021945,3]
[356121788,1741914655573,-500.0,0.00021945,3]
[356121790,1741914655582,-151.0,0.00021945,7]
[356121792,1741914655591,-500.0,0.00021945,3]
[356121794,1741914655600,-545.89,0.00021945,3]
[356121796,1741914655609,-151.0,0.00021945,7]
[356121798,1741914655618,-500.0,0.00021945,3]
[356121799,1741914655627,-151.0,0.00021945,7]
[356121801,1741914655636,-1009.05,0.00021945,3]
[356121803,1741914655645,-500.0,0.00021945,3]
[356121805,1741914655657,-1106.62,0.00021945,3]
[356121807,1741914655666,-500.0,0.00021945,3]
[356121809,1741914655676,-500.0,0.00021945,3]
[356121811,1741914655685,-500.0,0.00021945,3]
[356121813,1741914655694,-1197.28,0.00021945,3]
[356121815,1741914655704,-500.0,0.00021945,3]
[356121817,1741914655714,-500.0,0.00021945,3]
[356121819,1741914655723,-409.19,0.00021945,3]
[356121821,1741914655733,-704.38,0.00021945,3]
[356121823,1741914655742,-500.0,0.00021945,3]
[356121825,1741914655751,-562.64,0.00021945,3]
[356121827,1741914655760,-297.45236,0.00021945,7]
[356121829,1741914655769,-500.0,0.00021945,3]
[356121831,1741914655779,-500.0,0.00021945,3]
[356121833,1741914655788,-297.45236,0.00021945,7]
[356121835,1741914655797,-500.0,0.00021945,3]
[356121837,1741914655807,-500.0,0.00021945,3]
[356121839,1741914655817,-1215.24,0.00021945,3]
[356121841,1741914655827,-500.0,0.00021945,3]
[356121843,1741914655837,-515.65127665,0.00021945,3]
[356121845,1741914655846,-2196.32,0.00021945,3]
[356121847,1741914655856,-547.84,0.00021945,3]
[356121849,1741914655865,-201.04647473,0.00021945,3]
[356121851,1741914655875,-638.71,0.00021945,3]
[356121853,1741914655884,-500.0,0.00021945,3]
[356121855,1741914655894,-151.0,0.00021945,7]
[356121857,1741914655904,-500.0,0.00021945,3]
[356121859,1741914655913,-151.0,0.00021945,7]
[356121861,1741914655924,-500.0,0.00021945,3]
[356121863,1741914655937,-500.0,0.00021945,3]
[356121865,1741914655947,-500.0,0.00021945,3]
[356121867,1741914655956,-1119.95,0.00021945,3]
[356121869,1741914655966,-151.0,0.00021945,7]
[356121871,1741914655976,-862.23,0.00021945,3]
[356121873,1741914655985,-500.0,0.00021945,3]
[356121875,1741914655995,-500.0,0.00021945,3]
[356121877,1741914656004,-500.0,0.00021945,3]
[356121879,1741914656017,-500.0,0.00021945,3]
[356121881,1741914656026,-500.0,0.00021945,3]
[356121883,1741914656036,-236.421498,0.00021945,7]
[356121885,1741914656045,-500.0,0.00021945,3]
[356121887,1741914656054,-500.0,0.00021945,3]
[356121889,1741914656063,-236.421498,0.00021945,7]
[356121891,1741914656072,-151.0,0.00021945,7]
[356121893,1741914656081,-500.0,0.00021945,3]
[356121895,1741914656090,-532.62,0.00021945,3]
[356121897,1741914656099,-500.0,0.00021945,3]
[356121899,1741914656108,-500.0,0.00021945,3]
[356121901,1741914656119,-500.0,0.00021945,3]
[356121903,1741914656128,-500.0,0.00021945,3]
[356121905,1741914656137,-500.0,0.00021945,3]
[356121907,1741914656146,-500.0,0.00021945,3]
[356121909,1741914656156,-500.0,0.00021945,3]
[356121911,1741914656165,-500.0,0.00021945,3]
[356121913,1741914656175,-151.0,0.00021945,7]
[356121915,1741914656184,-151.0,0.00021945,7]
[356121917,1741914656193,-326.212927,0.00021945,3]
[356121919,1741914656203,-500.0,0.00021945,3]
[356121920,1741914656212,-500.0,0.00021945,3]
[356121922,1741914656221,-930.91,0.00021945,3]
[356121924,1741914656230,-151.0,0.00021945,7]
[356121926,1741914656239,-151.0,0.00021945,7]
[356121928,1741914656248,-171.709956,0.00021945,7]
[356121930,1741914656257,-500.0,0.00021945,3]
[356121932,1741914656266,-500.0,0.00021945,3]
[356121934,1741914656277,-500.0,0.00021945,3]
[356121936,1741914656286,-500.0,0.00021945,3]
[356121938,1741914656295,-500.0,0.00021945,3]
[356121940,1741914656306,-500.0,0.00021945,3]
[356121942,1741914656315,-500.0,0.00021945,3]
[356121944,1741914656324,-583.05658828,0.00021945,3]
[356121946,1741914656333,-500.0,0.00021945,3]
[356121948,1741914656342,-500.0,0.00021945,3]
[356121950,1741914656351,-500.0,0.00021945,3]
[356121952,1741914656361,-758.84,0.00021945,3]
[356121954,1741914656370,-500.0,0.00021945,3]
[356121956,1741914656380,-500.0,0.00021945,3]
[356121958,1741914656389,-500.0,0.00021945,3]
[356121960,1741914656399,-500.0,0.00021945,3]
[356121962,1741914656408,-500.0,0.00021945,3]
[356121964,1741914656418,-151.0,0.00021945,7]
[356121965,1741914656427,-500.0,0.00021945,3]
[356121967,1741914656437,-500.0,0.00021945,3]
[356121969,1741914656446,-151.0,0.00021945,7]
[356121971,1741914656456,-500.0,0.00021945,3]
[356121973,1741914656466,-500.0,0.00021945,3]
[356121975,1741914656475,-500.0,0.00021945,3]
[356121977,1741914656485,-400.948136,0.00021945,3]
[356121979,1741914656495,-612.27809764,0.00021945,3]
[356121981,1741914656504,-266.75,0.00021945,3]
[356121983,1741914656513,-1504.26,0.00021945,3]
[356121985,1741914656522,-500.0,0.00021945,3]
[356121987,1741914656532,-500.0,0.00021945,3]
[356121989,1741914656541,-500.0,0.00021945,3]
[356121991,1741914656550,-500.0,0.00021945,3]
[356121993,1741914656559,-151.0,0.00021945,7]
[356121995,1741914656571,-151.0,0.00021945,7]
[356121997,1741914656584,-155.99453011,0.00021945,3]
[356121999,1741914656597,-500.0,0.00021945,3]
[356122000,1741914656607,-500.0,0.00021945,3]
[356122001,1741914656616,-500.0,0.00021945,3]
[356122002,1741914656626,-500.0,0.00021945,3]
[356122003,1741914656635,-500.0,0.00021945,3]
[356122004,1741914656645,-500.0,0.00021945,3]
[356122005,1741914656655,-500.0,0.00021945,3]
[356122006,1741914656664,-500.0,0.00021945,3]
[356122007,1741914656674,-500.0,0.00021945,3]
[356122008,1741914656684,-500.0,0.00021945,3]
[356122009,1741914656693,-500.0,0.00021945,3]
[356122010,1741914656702,-1941.22,0.00021945,3]
[356122011,1741914656712,-151.0,0.00021945,7]
[356122012,1741914656721,-151.0,0.00021945,7]
[356122013,1741914656731,-500.0,0.00021945,3]
[356122014,1741914656740,-500.0,0.00021945,3]
[356122015,1741914656749,-500.0,0.00021945,3]
[356122016,1741914656759,-217.599936,0.00021945,7]
[356122017,1741914656769,-500.0,0.00021945,3]
[356122018,1741914656778,-500.0,0.00021945,3]
[356122019,1741914656787,-500.0,0.00021945,3]
[356122020,1741914656797,-500.0,0.00021945,3]
[356122021,1741914656807,-500.0,0.00021945,3]
[356122022,1741914656816,-500.0,0.00021945,3]
[356122023,1741914656825,-500.0,0.00021945,3]
[356122024,1741914656834,-500.0,0.00021945,3]
[356122025,1741914656844,-500.0,0.00021945,3]
[356122026,1741914656853,-770.27,0.00021945,3]
[356122027,1741914656862,-544.23,0.00021945,3]
[356122028,1741914656871,-500.0,0.00021945,3]
[356122029,1741914656881,-500.0,0.00021945,3]
[356122030,1741914656890,-500.0,0.00021945,3]
[356122031,1741914656901,-500.0,0.00021945,3]
[356122032,1741914656910,-500.0,0.00021945,3]
[356122033,1741914656923,-500.0,0.00021945,3]
[356122034,1741914656933,-500.0,0.00021945,3]
[356122035,1741914656942,-500.0,0.00021945,3]
[356122036,1741914656952,-500.0,0.00021945,3]
[356122037,1741914656963,-500.0,0.00021945,3]
[356122038,1741914656972,-500.0,0.00021945,3]
[356122039,1741914656981,-904.89,0.00021945,3]
[356122040,1741914656991,-500.0,0.00021945,3]
[356122041,1741914657001,-500.0,0.00021945,3]
[356122042,1741914657012,-500.0,0.00021945,3]
[356122043,1741914657022,-500.0,0.00021945,3]
[356122044,1741914657032,-502.04836209,0.00021945,3]
[356122045,1741914657042,-500.0,0.00021945,3]
[356122046,1741914657052,-214.85097,0.00021945,7]
[356122047,1741914657062,-214.85097,0.00021945,7]
[356122048,1741914657071,-500.0,0.00021945,3]
[356122049,1741914657081,-500.0,0.00021945,3]
[356122050,1741914657090,-500.0,0.00021945,3]
[356122051,1741914657099,-500.0,0.00021945,3]
[356122052,1741914657109,-500.0,0.00021945,3]
[356122053,1741914657119,-500.0,0.00021945,3]
[356122054,1741914657128,-1346.64,0.00021945,3]
[356122055,1741914657137,-500.0,0.00021945,3]
[356122056,1741914657147,-592.64,0.00021945,3]
[356122057,1741914657157,-500.0,0.00021945,3]
[356122058,1741914657166,-529.05,0.00021945,3]
[356122059,1741914657176,-500.0,0.00021945,3]
[356122060,1741914657185,-500.0,0.00021945,3]
[356122061,1741914657195,-500.0,0.00021945,3]
[356122062,1741914657205,-500.0,0.00021945,3]
[356122063,1741914657214,-500.0,0.00021945,3]
[356122064,1741914657223,-500.0,0.00021945,3]
[356122065,1741914657233,-500.0,0.00021945,3]
[356122066,1741914657243,-280.312323,0.00021945,7]
[356122067,1741914657253,-280.312323,0.00021945,7]
[356122068,1741914657262,-500.0,0.00021945,3]
[356122069,1741914657271,-265.63682,0.00021945,7]
[356122070,1741914657280,-582.05,0.00021945,3]
[356122071,1741914657290,-265.63682,0.00021945,7]
[356122072,1741914657299,-500.0,0.00021945,3]
[356122073,1741914657309,-500.0,0.00021945,3]
[356122074,1741914657318,-500.0,0.00021945,3]
[356122075,1741914657327,-500.0,0.00021945,3]
[356122076,1741914657337,-500.0,0.00021945,3]
[356122077,1741914657346,-265.63682,0.00021945,7]
[356122078,1741914657356,-500.0,0.00021945,3]
[356122079,1741914657365,-265.63682,0.00021945,7]
[356122080,1741914657375,-954.89,0.00021945,3]
[356122081,1741914657384,-687.66,0.00021945,3]
[356122082,1741914657394,-500.0,0.00021945,2]
[356122083,1741914657406,-500.0,0.00021945,3]
[356122084,1741914657416,-500.0,0.00021945,3]
[356122085,1741914657425,-500.0,0.00021945,3]
[356122086,1741914657435,-500.0,0.00021945,3]
[356122087,1741914657444,-500.0,0.00021945,3]
[356122088,1741914657454,-500.0,0.00021945,3]
[356122089,1741914657463,-500.0,0.00021945,3]
[356122090,1741914657473,-500.0,0.00021945,3]
[356122091,1741914657482,-500.0,0.00021945,3]
[356122092,1741914657492,-500.0,0.00021945,3]
[356122093,1741914657502,-500.0,0.00021945,3]
[356122094,1741914657512,-500.0,0.00021945,3]
[356122095,1741914657521,-500.0,0.00021945,3]
[356122096,1741914657531,-500.0,0.00021945,3]
[356122097,1741914657541,-500.0,0.00021945,3]
[356122098,1741914657550,-500.0,0.00021945,3]
[356122099,1741914657560,-500.0,0.00021945,3]
[356122100,1741914657570,-151.0,0.00021945,7]
[356122101,1741914657580,-500.0,0.00021945,3]
[356122102,1741914657589,-500.0,0.00021945,3]
[356122103,1741914657599,-151.0,0.00021945,7]
[356122104,1741914657609,-151.0,0.00021945,7]
[356122105,1741914657618,-500.0,0.00021945,3]
[356122106,1741914657628,-500.0,0.00021945,3]
[356122107,1741914657638,-151.0,0.00021945,7]
[356122108,1741914657648,-500.0,0.00021945,3]
[356122109,1741914657660,-151.0,0.00021945,7]
[356122110,1741914657670,-582.51,0.00021945,3]
[356122111,1741914657680,-500.0,0.00021945,3]
[356122112,1741914657689,-500.0,0.00021945,3]
[356122113,1741914657699,-215.69083,0.00021945,7]
[356122114,1741914657709,-1411.93,0.00021945,3]
[356122115,1741914657719,-215.69083,0.00021945,7]
[356122116,1741914657728,-500.0,0.00021945,3]
[356122117,1741914657739,-500.0,0.00021945,3]
[356122118,1741914657749,-215.69083,0.00021945,7]
[356122119,1741914657759,-500.0,0.00021945,3]
[356122120,1741914657769,-461.26930552,0.00021945,3]
[356122121,1741914657779,-215.69083,0.00021945,7]
[356122122,1741914657789,-2098.08,0.00021945,3]
[356122123,1741914657799,-648.39828132,0.00021945,3]
[356122124,1741914657809,-500.0,0.00021945,3]
[356122125,1741914657819,-500.0,0.00021945,3]
[356122126,1741914657829,-500.0,0.00021945,3]
[356122127,1741914657839,-500.0,0.00021945,3]
[356122128,1741914657848,-500.0,0.00021945,3]
[356122129,1741914657858,-500.0,0.00021945,3]
[356122130,1741914657867,-500.0,0.00021945,3]
[356122131,1741914657877,-500.0,0.00021945,3]
[356122132,1741914657887,-500.0,0.00021945,3]
[356122133,1741914657897,-500.0,0.00021945,3]
[356122134,1741914657907,-500.0,0.00021945,3]
[356122135,1741914657918,-615.53347095,0.00021945,3]
[356122136,1741914657931,-782.83,0.00021945,3]
[356122137,1741914657945,-500.0,0.00021945,3]
[356122138,1741914657955,-500.0,0.00021945,3]
[356122139,1741914657965,-500.0,0.00021945,3]
[356122140,1741914657975,-500.0,0.00021945,3]
[356122141,1741914657986,-151.0,0.00021945,7]
[356122142,1741914657996,-589.39,0.00021945,3]
[356122143,1741914658006,-500.0,0.00021945,3]
[356122144,1741914658016,-173.94813167,0.00021945,3]
[356122145,1741914658535,-326.05186833,0.00021945,3]
[356122146,1741914658545,-500.0,0.00021945,3]
[356122147,1741914658556,-500.0,0.00021945,3]
[356122148,1741914658565,-684.78,0.00021945,3]
[356122149,1741914658574,-500.0,0.00021945,3]
[356122150,1741914658583,-500.0,0.00021945,3]
[356122151,1741914658593,-500.0,0.00021945,3]
[356122152,1741914658602,-151.0,0.00021945,7]
[356122153,1741914658611,-500.0,0.00021945,3]
[356122154,1741914658621,-511.11,0.00021945,3]
[356122155,1741914658631,-1056.44,0.00021945,3]
[356122156,1741914658641,-201.18332268,0.00021945,3]
[356122157,1741914658650,-206.66516,0.00021945,7]
[356122158,1741914658660,-578.76,0.00021945,3]
[356122159,1741914658671,-500.0,0.00021945,3]
[356122160,1741914658680,-500.0,0.00021945,3]
[356122161,1741914658690,-206.66516,0.00021945,7]
[356122162,1741914658700,-500.0,0.00021945,3]
[356122163,1741914658709,-257.04448899,0.00021945,3]
[356122164,1741914658888,-242.95551101,0.00021945,3]
[356122165,1741914658898,-151.0,0.00021945,7]
[356122166,1741914658909,-151.0,0.00021945,7]
[356122167,1741914658919,-500.0,0.00021945,3]
[356122168,1741914658932,-145.04448899,0.00021945,3]
[356122193,1741915520489,402.04393005,9e-05,2]
[356122194,1741915520520,595.89270337,9e-05,2]
[356122195,1741915520552,67.58945617,9e-05,2]
[356122196,1741915537084,7050.86460076,8e-05,2]
[356122197,1741915537112,5630.9855692,8e-05,2]
[356122198,1741915537138,3763.70145904,8e-05,2]
[356122199,1741915537164,3554.448371,8e-05,2]
[356122201,1741915563998,198.43402157,8e-05,2]
[356122202,1741915564024,5068.54155364,8e-05,2]
[356122203,1741915564051,3767.97194285,8e-05,2]
[356122204,1741915564077,3577.95068955,8e-05,2]
[356122205,1741915564104,3654.04103583,8e-05,2]
[356122206,1741915564131,4170.04783944,8e-05,2]
[356122207,1741915564176,819.44209286,8e-05,2]
[356122208,1741915564199,1418.01031978,8e-05,2]
[356122233,1741915832033,-300.0,9.799e-05,2]
[356122234,1741915832043,-150.0,9.8e-05,2]
[356122235,1741915832053,-1139.681725,9.8e-05,3]
[356122236,1741915832066,-1754.44863394,9.8e-05,3]
[356122237,1741915832140,-3515.14401688,9.8e-05,3]
[356122238,1741915832153,-15570.26396236,9.8e-05,3]
[356122239,1741915832163,-150.0,9.87e-05,2]
[356122240,1741915832172,-20085.83655393,9.87e-05,2]
[356122241,1741915832182,-30056.58720001,9.88e-05,2]
[356122242,1741915832193,-6200.77446236,9.88e-05,2]
[356122243,1741915832202,-195.00229707,9.88e-05,2]
[356122244,1741915832212,-208.50200032,9.999e-05,2]
[356122245,1741915832221,-168.99440918,9.999e-05,2]
[356122246,1741915832231,-500.0,9.999e-05,2]
[356122247,1741915832240,-241.16102612,9.999e-05,2]
[356122248,1741915832384,-258.83897388,9.999e-05,2]
[356122250,1741915832394,-500.0,9.999e-05,2]
[356122252,1741915832404,-142.49651702,9.999e-05,2]
[356122292,1741915837941,-357.50348298,9.999e-05,2]
[356122293,1741915837951,-500.0,9.999e-05,2]
[356122294,1741915837961,-500.0,9.999e-05,2]
[356122295,1741915837972,-322.15678855,9.999e-05,2]
[356122296,1741915837981,-8904.0957183,0.0001,2]
[356122297,1741915838251,-299.25,0.0001,2]
[356122315,1741915844868,-650.61127465,0.0001,2]
[356122316,1741915844879,-330.37025421,0.0001,2]
[356122349,1741915846163,-1007.3814,0.0001,2]
[356122350,1741915846175,-2890.33831613,0.0001,2]
[356122351,1741915846266,-19936.13955785,0.0001,2]
[356122352,1741915846417,-16712.71401388,0.0001,2]
[356122714,1741917032190,-600.0,9.6e-05,3]
[356122715,1741917032199,-500.0,9.6e-05,3]
[356122716,1741917032208,-83.0,9.613e-05,2]
[356122717,1741917032312,-67.0,9.613e-05,2]
[356122718,1741917032322,-1093.96032707,9.7e-05,3]
[356122719,1741917032379,-106.03967293,9.7e-05,3]
[356122720,1741917032389,-1000.0,9.7e-05,3]
[356122721,1741917032399,-1005.96710294,9.7e-05,2]
[356122722,1741917032408,-300.0,9.799e-05,2]
[356122723,1741917032417,-181.186,9.8e-05,2]
[356122724,1741917032427,-3531.904,9.8e-05,2]
[356122725,1741917032436,-1800.0,9.8e-05,3]
[356122726,1741917032446,-1500.0,9.8e-05,3]
[356122727,1741917032455,-232.614,9.9e-05,2]
[356122728,1741917032464,-268.3408,9.9e-05,2]
[356122729,1741917032473,-2400.0,9.9e-05,3]
[356122730,1741917032483,-2000.0,9.9e-05,3]
[356122731,1741917032494,-505.88249344,9.973e-05,2]
[356122732,1741917032504,-505.11126598,9.973e-05,2]
[356122733,1741917032513,-5320.71033685,9.999e-05,2]
[356122734,1741917032523,-150.0,9.999e-05,2]
[356122735,1741917032532,-516.23783046,9.999e-05,2]
[356122736,1741917032542,-66243.63322664,0.0001,2]
[356122737,1741917032554,-61481.87378793,0.0001,2]
[356122739,1741917032584,-44724.77733814,0.0001,2]
[356122775,1741917038118,-4024.61324106,9.9e-05,2]
[356122776,1741917040226,-346.90770526,9.9e-05,2]
[356122777,1741917040310,-1484.29825368,9.9e-05,2]
[356122778,1741917040319,-655.01779296,0.0001,2]
[356122779,1741917040330,-2212.50208923,0.0001,2]
[356122780,1741917040341,-723.70895145,0.0001,2]
[356122781,1741917040352,-1986.97000001,0.0001,2]
[356122782,1741917040498,-303.61012991,0.0001,2]
[356122783,1741917040510,-452.9945539,0.0001,2]
[356122784,1741917040522,-1597.99710519,0.0001,2]
[356122785,1741917040535,-266.6244499,0.0001,2]
[356122786,1741917040629,-1486.9108311,0.0001,2]
[356122787,1741917040642,-3553.97594792,0.0001,2]
[356122788,1741917040709,-691.13045541,0.0001,2]
[356122789,1741917040720,-7980.75359698,0.0001,2]
[356122790,1741917040732,-547.03466666,0.0001,2]
[356122797,1741917043117,-6128.65634626,0.0001,2]
[356122799,1741917043185,-275.885,0.0001,2]
[356122800,1741917043255,-251.05244281,0.0001,2]
[356122801,1741917043324,-8635.87802365,0.0001,2]